bitfinex/quotes_SOLUSD_20241102
["timestamp","ask_amount","ask_price","bid_price","bid_amount"]
[1730538279045,21.914,166.82,166.77,11.08268318]
[1730538279855,21.914,166.82,166.77,17.07858318]
[1730538280359,32.99668318,166.82,166.77,17.07858318]
[1730538281250,21.914,166.82,166.77,17.07858318]
[1730538281438,21.914,166.82,166.77,11.08268318]
[1730538281861,32.99668318,166.82,166.76,11.08268318]
[1730538282041,11.08268318,166.81,166.76,11.08268318]
[1730538282457,11.08268318,166.81,166.77,5.9962]
[1730538282759,32.99668318,166.82,166.77,5.9962]
[1730538284560,32.99668318,166.82,166.77,11.08268318]
[1730538285841,21.914,166.82,166.77,17.07858318]
[1730538287367,21.914,166.82,166.78,11.08268318]
[1730538287668,11.08268318,166.85,166.79,11.08268318]
[1730538287966,11.08268318,166.85,166.8,11.08268318]
[1730538288865,103.43428318,166.86,166.81,5.9948]
[1730538290253,33.43428318,166.86,166.81,5.9948]
[1730538290441,16.3583,166.86,166.81,11.08268318]
[1730538290640,11.08268318,166.87,166.82,11.08268318]
[1730538291443,17.07548318,166.87,166.82,11.08268318]
[1730538293159,17.07548318,166.87,166.82,17.07708318]
[1730538293666,11.08268318,166.87,166.82,32.06328318]
[1730538294171,17.07508318,166.88,166.83,11.08268318]
[1730538294490,17.07458318,166.89,166.84,11.08268318]
[1730538294843,33.43258318,166.9,166.84,11.08268318]
[1730538295268,33.43258318,166.9,166.85,11.08268318]
[1730538295572,11.08268318,166.88,166.84,20.9778]
[1730538296367,11.08268318,166.89,166.84,20.9778]
[1730538296968,11.08268318,166.89,166.84,32.06048318]
[1730538297471,17.07458318,166.89,166.84,32.06048318]
[1730538298565,5.9919,166.89,166.85,11.08268318]
[1730538298949,17.07418318,166.91,166.85,11.08268318]
[1730538299165,189.67358318,166.92,166.87,11.08268318]
[1730538299465,11.08268318,166.91,166.85,11.08268318]
[1730538299677,11.08268318,166.9,166.85,11.08268318]
[1730538300271,11.08268318,166.88,166.84,14.9838]
[1730538300586,11.08268318,166.88,166.84,20.9775]
[1730538301067,11.08268318,166.89,166.84,32.06018318]
[1730538301660,11.08268318,166.87,166.82,11.08268318]
[1730538302857,11.08268318,166.87,166.83,5.9941]
[1730538303770,11.08268318,166.88,166.83,11.08268318]
[1730538304069,17.07488318,166.89,166.83,11.08268318]
[1730538304458,17.07488318,166.89,166.85,11.08268318]
[1730538304459,5.9922,166.89,166.85,11.08268318]
[1730538304659,17.07428318,166.9,166.85,11.08268318]
[1730538304876,17.07428318,166.9,166.84,11.08268318]
[1730538305174,17.07428318,166.9,166.81,45.75141906]
[1730538305175,11.08268318,166.89,166.83,11.08268318]
[1730538306059,11.08268318,166.88,166.83,17.07638318]
[1730538306675,17.07468318,166.89,166.83,17.07638318]
[1730538306874,17.07468318,166.89,166.83,32.06168318]
[1730538307075,17.07468318,166.89,166.84,11.08268318]
[1730538307581,11.08268318,166.89,166.84,11.08268318]
[1730538307783,11.08268318,166.9,166.85,11.08268318]
[1730538308083,11.08268318,166.91,166.86,11.08268318]
[1730538308453,17.07348318,166.92,166.87,11.08268318]
[1730538310581,11.08268318,166.91,166.86,11.08268318]
[1730538311553,11.08268318,166.88,166.84,14.9844]
[1730538312656,11.08268318,166.88,166.84,20.9781]
[1730538312878,11.08268318,166.88,166.84,14.9844]
[1730538313961,11.08268318,166.88,166.84,20.9781]
[1730538314594,11.08268318,166.88,166.84,14.9844]
[1730538314774,17.07498318,166.88,166.84,14.9844]
[1730538314955,17.07498318,166.88,166.84,20.9781]
[1730538316078,11.08268318,166.88,166.84,20.9781]
[1730538316275,17.07468318,166.89,166.84,20.9781]
[1730538316508,5.992,166.89,166.84,32.06078318]
[1730538316980,11.08268318,166.88,166.82,17.07708318]
[1730538317364,11.08268318,166.87,166.82,17.07708318]
[1730538318379,11.08268318,166.88,166.83,11.08268318]
[1730538318575,5.9925,166.88,166.84,11.08268318]
[1730538319781,5.9925,166.88,166.83,17.07648318]
[1730538320169,5.9925,166.88,166.84,11.08268318]
[1730538321397,17.07448318,166.9,166.84,17.07608318]
[1730538321575,11.08268318,166.89,166.84,17.07608318]
[1730538322466,11.08268318,166.89,166.84,32.06048318]
[1730538324182,17.07458318,166.89,166.84,32.06048318]
[1730538325287,11.08268318,166.88,166.84,14.9844]
[1730538326488,17.07498318,166.88,166.84,20.9781]
[1730538326781,17.07498318,166.88,166.81,30.76431906]
[1730538326782,11.08268318,166.86,166.81,26.85960224]
[1730538326961,11.08268318,166.85,166.81,21.77171906]
[1730538327385,11.08268318,166.86,166.81,21.77171906]
[1730538328067,11.08268318,166.86,166.81,32.85440224]
[1730538332097,11.08268318,166.83,166.79,5.9952]
[1730538332475,11.08268318,166.83,166.78,20.9852]
[1730538332880,11.08268318,166.82,166.78,20.9852]
[1730538333573,11.08268318,166.82,166.77,11.08268318]
[1730538333574,11.08268318,166.82,166.77,17.07888318]
[1730538335506,11.08268318,166.82,166.77,32.06958318]
[1730538336286,17.07718318,166.82,166.77,32.06958318]
[1730538339790,17.07658318,166.84,166.79,11.08268318]
[1730538345099,11.08268318,166.84,166.79,32.06678318]
[1730538345399,17.07608318,166.85,166.79,32.06678318]
[1730538346491,87.07608318,166.85,166.79,32.06678318]
[1730538346895,17.07608318,166.85,166.8,11.08268318]
[1730538348109,11.08268318,166.86,166.8,11.08268318]
[1730538349104,11.08268318,166.86,166.81,5.9948]
[1730538349284,17.07538318,166.87,166.81,32.06458318]
[1730538349887,17.07538318,166.87,166.81,20.9819]
[1730538350092,17.07538318,166.87,166.82,11.08268318]
[1730538350295,17.07538318,166.87,166.82,17.07708318]
[1730538350490,11.08268318,166.87,166.82,17.07708318]
[1730538350688,32.71428318,166.88,166.82,32.06328318]
[1730538357812,32.71428318,166.88,166.83,11.08268318]
[1730538357813,26.72188318,166.88,166.83,11.08268318]
[1730538358024,17.07468318,166.89,166.83,11.08268318]
[1730538359316,11.08268318,166.88,166.83,11.08268318]
[1730538359492,11.08268318,166.88,166.83,5.9938]
[1730538361602,17.07518318,166.88,166.83,5.9938]
[1730538364827,11.08268318,166.87,166.83,5.9938]
[1730538366624,17.07518318,166.88,166.83,5.9938]
[1730538368325,11.08268318,166.89,166.83,17.07648318]
[1730538368499,11.08268318,166.89,166.83,32.06178318]
[1730538368698,11.08268318,166.89,166.84,11.08268318]
[1730538369109,11.08268318,166.89,166.83,32.06178318]
[1730538369615,11.08268318,166.89,166.84,11.08268318]
[1730538370005,11.08268318,166.89,166.83,32.06178318]
[1730538371000,11.08268318,166.89,166.84,11.08268318]
[1730538371227,11.08268318,166.9,166.85,11.08268318]
[1730538371600,11.08268318,166.91,166.85,11.08268318]
[1730538372899,11.08268318,166.91,166.86,5.993]
[1730538373425,11.08268318,166.91,166.86,20.9756]
[1730538374125,11.08268318,166.91,166.86,32.05828318]
[1730538374715,11.08268318,166.91,166.86,20.9756]
[1730538375302,11.08268318,166.91,166.86,32.05828318]
[1730538376515,11.08268318,166.89,166.86,14.9826]
[1730538376722,11.08268318,166.88,166.86,14.9826]
[1730538378735,11.08268318,166.89,166.84,11.08268318]
[1730538380222,17.07428318,166.9,166.85,5.9934]
[1730538380524,11.08268318,166.89,166.85,5.9934]
[1730538381919,5.9916,166.9,166.85,11.08268318]
[1730538382118,17.07428318,166.9,166.85,11.08268318]
[1730538382528,17.07398318,166.91,166.85,11.08268318]
[1730538383023,17.07398318,166.91,166.86,11.08268318]
[1730538383918,17.07398318,166.91,166.86,17.07548318]
[1730538384502,5.9913,166.91,166.86,17.07548318]
[1730538385426,11.08268318,166.93,166.87,11.08268318]
[1730538385928,11.08268318,166.93,166.88,11.08268318]
[1730538386321,11.08268318,166.93,166.88,17.07468318]
[1730538387421,33.52368318,166.96,166.9,11.08268318]
[1730538387622,11.08268318,166.95,166.9,11.08268318]
[1730538388520,33.52368318,166.96,166.9,17.07398318]
[1730538389414,33.52368318,166.96,166.91,11.08268318]
[1730538391326,33.52368318,166.96,166.91,17.07368318]
[1730538391627,17.07168318,166.98,166.93,11.08268318]
[1730538391821,17.07168318,166.98,166.92,11.08268318]
[1730538392135,11.08268318,166.97,166.92,11.08268318]
[1730538392633,11.08268318,166.97,166.92,32.05058318]
[1730538393545,11.08268318,166.99,166.94,11.08268318]
[1730538394227,15.8394,167.0,166.95,11.08268318]
[1730538394633,15.8394,167.0,166.96,5.9894]
[1730538395025,26.92208318,167.0,166.96,5.9894]
[1730538395244,11.08268318,166.99,166.95,14.9741]
[1730538395535,11.08268318,166.98,166.95,14.9741]
[1730538395956,11.08268318,166.96,166.92,20.9679]
[1730538396645,11.08268318,166.95,166.9,5.9916]
[1730538397733,11.08268318,166.95,166.9,17.07428318]
[1730538399738,11.08268318,166.94,166.88,11.08268318]
[1730538399946,11.08268318,166.92,166.86,26.06508318]
[1730538400933,11.08268318,166.92,166.87,11.08268318]
[1730538401140,11.08268318,166.93,166.87,11.08268318]
[1730538401525,32.91248318,166.94,166.88,11.08268318]
[1730538402344,5.9904,166.94,166.9,11.08268318]
[1730538402734,17.07248318,166.95,166.9,11.08268318]
[1730538404051,11.08268318,166.94,166.89,17.07428318]
[1730538407041,11.08268318,166.94,166.88,26.06348318]
[1730538408231,70.0,166.97,166.88,32.05578318]
[1730538408232,11.08268318,166.93,166.88,32.05578318]
[1730538409851,11.08268318,166.94,166.88,32.05578318]
[1730538410553,11.08268318,166.94,166.89,11.08268318]
[1730538411655,11.08268318,166.94,166.9,5.9916]
[1730538412733,11.08268318,166.94,166.88,26.06348318]
[1730538412734,11.08268318,166.94,166.89,5.9919]
[1730538413158,11.08268318,166.94,166.89,17.07458318]
[1730538413647,11.08268318,166.94,166.89,32.05448318]
[1730538413858,17.07258318,166.95,166.89,32.05448318]
[1730538415155,17.07228318,166.96,166.9,11.08268318]
[1730538415451,11.08268318,166.95,166.9,11.08268318]
[1730538416230,11.08268318,166.95,166.9,17.07398318]
[1730538418558,11.08268318,166.95,166.89,26.06258318]
[1730538419554,11.08268318,166.9,166.86,14.9826]
[1730538419753,11.08268318,166.89,166.86,20.9756]
[1730538420558,11.08268318,166.89,166.86,14.9826]
[1730538424462,11.08268318,166.88,166.83,20.9793]
[1730538425360,11.08268318,166.86,166.83,14.9852]
[1730538426437,11.08268318,166.86,166.83,20.9793]
[1730538428361,11.08268318,166.87,166.83,20.9793]
[1730538429460,11.08268318,166.86,166.82,0.89928183]
[1730538429766,11.08268318,166.86,166.82,6.89368183]
[1730538431556,17.07578318,166.86,166.82,0.89928183]
[1730538435069,11.08268318,166.83,166.8,14.9878]
[1730538435266,11.08268318,166.82,166.77,32.06928318]
[1730538436078,11.08268318,166.82,166.77,20.9866]
[1730538436649,11.08268318,166.82,166.77,32.06928318]
[1730538436949,17.07698318,166.83,166.78,11.08268318]
[1730538437363,17.07698318,166.83,166.78,17.07828318]
[1730538441467,17.07698318,166.83,166.77,26.07318318]
[1730538442973,11.08268318,166.85,166.79,11.08268318]
[1730538443160,11.08268318,166.85,166.8,11.08268318]
[1730538443563,32.43848318,166.86,166.81,17.07748318]
[1730538443868,32.43848318,166.86,166.81,5.9948]
[1730538444175,32.43848318,166.86,166.81,17.07748318]
[1730538444344,32.43848318,166.86,166.81,5.9948]
[1730538445557,11.08268318,166.85,166.8,26.07048318]
[1730538445755,17.07608318,166.85,166.8,32.06558318]
[1730538446668,11.08268318,166.84,166.8,20.9829]
[1730538447571,17.07648318,166.84,166.8,20.983]
[1730538449055,11.08268318,166.84,166.8,20.983]
[1730538452275,17.07608318,166.85,166.8,11.08268318]
[1730538452969,15.3625,166.86,166.81,11.08268318]
[1730538454459,17.07548318,166.87,166.81,32.06428318]
[1730538454958,11.08268318,166.87,166.82,11.08268318]
[1730538455775,17.07498318,166.88,166.82,11.08268318]
[1730538455961,11.08268318,166.87,166.82,11.08268318]
[1730538456279,11.08268318,166.87,166.82,17.07678318]
[1730538456580,11.08268318,166.87,166.81,20.9819]
[1730538456581,11.08268318,166.85,166.81,20.9819]
[1730538457672,11.08268318,166.84,166.79,5.9952]
[1730538458471,11.08268318,166.84,166.79,20.9841]
[1730538459280,11.08268318,166.84,166.79,32.06678318]
[1730538459475,17.07648318,166.84,166.79,32.06678318]
[1730538459873,11.08268318,166.83,166.79,20.9841]
[1730538460466,11.08268318,166.83,166.79,14.9889]
[1730538463986,11.08268318,166.83,166.78,11.08268318]
[1730538465389,17.07708318,166.83,166.77,11.08268318]
[1730538466572,11.08268318,166.81,166.76,32.07088318]
[1730538466773,11.08268318,166.82,166.76,32.07088318]
[1730538467993,5.9947,166.82,166.77,11.08268318]
[1730538468493,17.07738318,166.82,166.77,11.08268318]
[1730538469186,17.07738318,166.82,166.77,17.07888318]
[1730538471019,17.07738318,166.82,166.76,26.07428318]
[1730538472614,17.07738318,166.82,166.76,32.07088318]
[1730538472822,11.08268318,166.81,166.76,14.9916]
[1730538473131,11.08268318,166.78,166.73,12.25974003]
[1730538473307,70.0,166.79,166.72,26.07728318]
[1730538473308,11.08268318,166.77,166.72,26.07728318]
[1730538474400,11.08268318,166.77,166.72,32.07528318]
[1730538474738,17.07888318,166.77,166.72,32.07528318]
[1730538477216,17.07858318,166.78,166.72,32.07528318]
[1730538477421,17.07858318,166.78,166.73,11.08268318]
[1730538478990,5.9959,166.78,166.73,17.08018318]
[1730538481498,17.07858318,166.78,166.73,17.08018318]
[1730538483102,5.9959,166.78,166.73,17.08018318]
[1730538485185,26.70638318,166.79,166.73,17.08018318]
[1730538485391,15.6237,166.79,166.74,11.08268318]
[1730538485586,17.07808318,166.8,166.75,11.08268318]
[1730538486509,17.07808318,166.8,166.74,17.07978318]
[1730538486691,17.07808318,166.8,166.74,32.07318318]
[1730538487783,17.07808318,166.8,166.75,11.08268318]
[1730538488185,17.07808318,166.8,166.7,20.9958]
[1730538488186,17.07808318,166.8,166.74,11.08268318]
[1730538488396,17.47468318,166.81,166.75,11.08268318]
[1730538488708,11.08268318,166.81,166.76,11.08268318]
[1730538489514,17.07728318,166.82,166.76,11.08268318]
[1730538489884,32.70048318,166.83,166.78,11.08268318]
[1730538490085,32.70048318,166.83,166.77,11.08268318]
[1730538490302,26.70638318,166.83,166.78,11.08268318]
[1730538490509,32.70058318,166.83,166.77,11.08268318]
[1730538491485,11.08268318,166.82,166.77,17.07878318]
[1730538492215,11.08268318,166.82,166.77,32.06948318]
[1730538492514,32.70058318,166.83,166.77,32.06948318]
[1730538494615,6.4299,166.91,166.83,20.0]
[1730538494787,6.4299,166.91,166.86,11.08268318]
[1730538494988,70.0,166.9,166.81,20.0]
[1730538495187,70.0,166.88,166.79,20.0]
[1730538495386,70.0,166.88,166.78,27.4846]
[1730538495921,15.4827,166.87,166.78,20.9855]
[1730538496490,11.08268318,166.86,166.8,11.08268318]
[1730538497407,11.08268318,166.86,166.81,11.08268318]
[1730538497708,11.08268318,166.86,166.81,17.07728318]
[1730538498901,15.4827,166.87,166.83,11.08268318]
[1730538500923,15.4827,166.87,166.82,17.07688318]
[1730538503809,26.56538318,166.87,166.82,17.07688318]
[1730538504033,11.08268318,166.86,166.81,26.06978318]
[1730538504223,26.56538318,166.87,166.81,26.06978318]
[1730538505234,15.4827,166.87,166.81,26.06978318]
[1730538505402,11.08268318,166.84,166.81,14.9871]
[1730538505803,11.08268318,166.84,166.79,17.07798318]
[1730538505804,11.08268318,166.82,166.78,5.9957]
[1730538506502,11.08268318,166.82,166.74,6.26246151]
[1730538506503,11.08268318,166.81,166.76,11.08268318]
[1730538506706,11.08268318,166.79,166.75,5.997]
[1730538507112,11.08268318,166.79,166.74,11.08268318]
[1730538507306,11.08268318,166.79,166.74,17.07988318]
[1730538510843,87.07798318,166.8,166.75,11.08268318]
[1730538512635,87.07798318,166.8,166.75,17.07958318]
[1730538515444,11.08268318,166.79,166.74,11.08268318]
[1730538516621,11.08268318,166.79,166.73,26.07608318]
[1730538517439,11.08268318,166.79,166.73,32.07378318]
[1730538518850,11.08268318,166.78,166.73,32.07378318]
[1730538519349,17.07828318,166.79,166.73,32.07378318]
[1730538521191,11.08268318,166.78,166.73,32.07378318]
[1730538522255,11.08268318,166.79,166.73,32.07378318]
[1730538522437,34.85956718,166.79,166.73,32.07378318]
[1730538524456,40.85506718,166.79,166.73,32.07378318]
[1730538525065,11.08268318,166.79,166.73,32.07378318]
[1730538525236,11.08268318,166.79,166.74,11.08268318]
[1730538525440,81.08268318,166.8,166.75,11.08268318]
[1730538526746,87.07788318,166.8,166.75,17.07958318]
[1730538531164,11.08268318,166.79,166.74,11.08268318]
[1730538531649,11.08268318,166.78,166.73,26.07608318]
[1730538532556,17.07828318,166.79,166.74,11.08268318]
[1730538534662,17.07828318,166.79,166.74,17.07998318]
[1730538541639,104.85956718,166.78,166.73,14.9934]
[1730538541843,81.08268318,166.76,166.71,17.08098318]
[1730538542058,34.85956718,166.75,166.7,12.26099065]
[1730538542758,23.776884,166.75,166.71,11.08268318]
[1730538543671,22.606,166.76,166.72,11.08268318]
[1730538545660,22.606,166.76,166.72,17.08068318]
[1730538545864,22.606,166.76,166.73,11.08268318]
[1730538546444,16.6091,166.76,166.73,11.08268318]
[1730538546746,23.776884,166.77,166.73,11.08268318]
[1730538547147,23.776884,166.77,166.73,17.08038318]
[1730538549177,12.2673,166.79,166.74,11.08268318]
[1730538549367,12.2673,166.79,166.75,11.08268318]
[1730538549674,12.2673,166.79,166.74,11.08268318]
[1730538550452,23.34998318,166.79,166.74,17.07998318]
[1730538552256,6.2718,166.79,166.75,11.08268318]
[1730538552453,75.9952,166.8,166.76,11.08268318]
[1730538553480,22.6039,166.81,166.76,17.07928318]
[1730538553655,16.6091,166.81,166.77,11.08268318]
[1730538553860,75.9944,166.82,166.77,11.08268318]
[1730538554359,75.9944,166.82,166.78,11.08268318]
[1730538554558,75.9944,166.82,166.79,11.08268318]
[1730538556054,75.9944,166.82,166.78,11.08268318]
[1730538560063,87.07708318,166.82,166.77,11.08268318]
[1730538561483,34.85956718,166.81,166.76,5.9963]
[1730538561661,11.08268318,166.8,166.75,32.07118318]
[1730538562585,11.08268318,166.8,166.75,20.9885]
[1730538562874,93.776884,166.79,166.75,26.07428318]
[1730538563081,93.776884,166.79,166.73,11.08268318]
[1730538563082,11.08268318,166.78,166.73,11.08268318]
[1730538563292,34.85956718,166.77,166.72,11.08268318]
[1730538563584,81.08268318,166.77,166.72,11.08268318]
[1730538564364,87.07918318,166.77,166.72,11.08268318]
[1730538566086,70.0,166.75,166.72,11.08268318]
[1730538566266,75.997,166.75,166.71,11.08268318]
[1730538568059,75.997,166.75,166.72,11.08268318]
[1730538568262,81.08268318,166.77,166.68,20.9981]
[1730538568461,23.776884,166.76,166.73,11.08268318]
[1730538570884,29.773484,166.76,166.73,11.08268318]
[1730538573572,70.0,166.77,166.74,11.08268318]
[1730538573884,5.9961,166.78,166.74,11.08268318]
[1730538577278,17.07878318,166.78,166.73,11.08268318]
[1730538578096,11.08268318,166.76,166.71,11.08268318]
[1730538579192,5.9967,166.76,166.71,17.08108318]
[1730538582982,5.9967,166.76,166.72,11.08268318]
[1730538585886,17.07938318,166.76,166.71,11.08268318]
[1730538587285,17.07938318,166.76,166.71,17.08098318]
[1730538588981,5.9967,166.76,166.72,11.08268318]
[1730538592605,93.776884,166.77,166.71,5.9981]
[1730538592606,87.07838318,166.79,166.74,11.08268318]
[1730538594205,23.776884,166.78,166.73,17.08008318]
[1730538594787,29.772784,166.78,166.73,17.08008318]
[1730538594988,40.85546718,166.78,166.73,5.9974]
[1730538595206,23.776884,166.76,166.72,11.08268318]
[1730538595710,23.776884,166.76,166.71,32.07688318]
[1730538596290,29.773584,166.76,166.71,32.07688318]
[1730538596887,29.773584,166.76,166.72,11.08268318]
[1730538600014,5.9962,166.78,166.73,11.08268318]
[1730538600217,23.776884,166.77,166.73,11.08268318]
[1730538601321,29.773184,166.77,166.73,11.08268318]
[1730538602393,29.773184,166.77,166.74,11.08268318]
[1730538605717,99.773184,166.77,166.74,11.08268318]
[1730538605939,99.773184,166.77,166.73,11.08268318]
[1730538606599,99.773184,166.77,166.74,11.08268318]
[1730538608028,29.773184,166.77,166.74,11.08268318]
[1730538608816,5.9963,166.77,166.74,11.08268318]
[1730538609015,21.6539,166.8,166.76,11.08268318]
[1730538609534,21.6539,166.8,166.77,11.08268318]
[1730538609831,6.2211,166.82,166.77,11.08268318]
[1730538610128,12.2156,166.82,166.77,11.08268318]
[1730538610434,23.776884,166.81,166.77,11.08268318]
[1730538611215,23.776884,166.81,166.77,17.07878318]
[1730538611409,75.9941,166.83,166.78,11.08268318]
[1730538611912,23.776884,166.82,166.78,11.08268318]
[1730538614341,23.776884,166.82,166.79,11.08268318]
[1730538614532,15.4566,166.84,166.79,11.08268318]
[1730538614831,21.4504,166.84,166.8,11.08268318]
[1730538618320,194.0504,166.84,166.8,11.08268318]
[1730538619938,172.6,166.84,166.82,11.08268318]
[1730538621139,172.6,166.84,166.72,81.03033272]
[1730538621140,172.6,166.84,166.83,11.08268318]
[1730538621343,172.6,166.88,166.83,11.08268318]
[1730538621546,172.6,166.88,166.85,11.08268318]
[1730538621920,172.6,166.87,166.86,11.08268318]
[1730538622134,15.8513,166.89,166.86,11.08268318]
[1730538622629,172.6,166.88,166.86,11.08268318]
[1730538622828,5.9913,166.91,166.87,11.08268318]
[1730538624444,70.0,166.92,166.88,11.08268318]
[1730538624649,15.8513,166.93,166.89,11.08268318]
[1730538625346,21.8418,166.93,166.89,11.08268318]
[1730538625841,23.776884,166.92,166.89,11.08268318]
[1730538626444,15.8513,166.93,166.89,17.07458318]
[1730538627143,15.8513,166.93,166.9,11.08268318]
[1730538627646,21.8418,166.93,166.89,11.08268318]
[1730538628522,15.8513,166.93,166.89,11.08268318]
[1730538628733,23.276884,166.94,166.9,11.08268318]
[1730538629435,12.4927,166.95,166.9,11.08268318]
[1730538630551,70.0,166.94,166.9,11.08268318]
[1730538630849,75.9904,166.94,166.9,11.08268318]
[1730538631535,75.9904,166.94,166.89,11.08268318]
[1730538631729,75.9904,166.94,166.88,5.9923]
[1730538631730,81.08268318,166.92,166.87,26.06438318]
[1730538631935,23.776884,166.93,166.89,11.08268318]
[1730538633351,29.767484,166.93,166.89,11.08268318]
[1730538634956,5.9906,166.93,166.89,11.08268318]
[1730538636555,5.9906,166.93,166.9,11.08268318]
[1730538637739,5.9901,166.94,166.9,11.08268318]
[1730538646763,5.9901,166.94,166.91,11.08268318]
[1730538647765,81.08268318,166.96,166.9,11.08268318]
[1730538647766,5.9898,166.95,166.9,11.08268318]
[1730538649558,17.07248318,166.95,166.9,11.08268318]
[1730538653443,70.0,166.94,166.89,11.08268318]
[1730538654544,23.776884,166.93,166.89,11.08268318]
[1730538655469,29.767684,166.93,166.89,11.08268318]
[1730538655970,29.767684,166.93,166.9,11.08268318]
[1730538662676,29.767684,166.93,166.89,11.08268318]
[1730538663657,81.08268318,166.96,166.9,11.08268318]
[1730538663858,5.9898,166.95,166.9,11.08268318]
[1730538664061,5.9898,166.95,166.91,11.08268318]
[1730538664967,75.9895,166.96,166.93,11.08268318]
[1730538665152,70.0,166.96,166.93,11.08268318]
[1730538665354,21.3977,166.97,166.93,11.08268318]
[1730538665979,91.3977,166.97,166.93,11.08268318]
[1730538666776,21.3977,166.97,166.93,11.08268318]
[1730538667876,91.3977,166.97,166.93,11.08268318]
[1730538669569,102.48038318,166.97,166.92,11.08268318]
[1730538669761,102.48038318,166.97,166.91,14.978]
[1730538669762,102.48038318,166.97,166.91,26.06068318]
[1730538670168,11.08268318,166.96,166.91,26.06068318]
[1730538670362,11.08268318,166.96,166.89,11.08268318]
[1730538670363,23.776884,166.94,166.89,11.08268318]
[1730538670670,11.08268318,166.93,166.88,26.06328318]
[1730538671376,93.776884,166.92,166.87,11.08268318]
[1730538671671,17.07388318,166.91,166.86,17.07568318]
[1730538675158,104.85956718,166.9,166.85,11.08268318]
[1730538676171,5.9919,166.89,166.85,11.08268318]
[1730538677574,104.85956718,166.88,166.83,11.08268318]
[1730538678167,5.9926,166.87,166.83,11.08268318]
[1730538678477,5.9926,166.87,166.82,32.86108623]
[1730538678657,5.9926,166.87,166.83,11.08268318]
[1730538679165,5.9916,166.9,166.86,11.08268318]
[1730538679677,75.9916,166.9,166.85,11.08268318]
[1730538682581,5.9916,166.9,166.86,11.08268318]
[1730538682778,5.9916,166.9,166.85,17.07598318]
[1730538687091,91.4522,166.92,166.87,11.08268318]
[1730538687292,91.4522,166.92,166.88,11.08268318]
[1730538687669,5.9909,166.92,166.88,11.08268318]
[1730538688367,29.767384,166.93,166.88,11.08268318]
[1730538691782,29.767384,166.93,166.89,11.08268318]
[1730538692690,5.9902,166.94,166.89,11.08268318]
[1730538692874,5.9902,166.94,166.89,17.07448318]
[1730538693072,5.9902,166.94,166.9,11.08268318]
[1730538693380,17.07248318,166.95,166.9,11.08268318]
[1730538693586,17.07248318,166.95,166.89,32.05438318]
[1730538701483,17.07248318,166.95,166.9,11.08268318]
[1730538702597,17.07298318,166.94,166.89,17.07458318]
[1730538703001,17.07298318,166.94,166.89,5.9919]
[1730538706907,17.07298318,166.94,166.89,11.08268318]
[1730538708288,103.41738318,166.96,166.91,11.08268318]
[1730538708607,33.41738318,166.96,166.91,11.08268318]
[1730538709504,22.3347,166.96,166.91,17.07388318]
[1730538710483,5.9893,166.97,166.92,11.08268318]
[1730538711590,5.9893,166.97,166.92,17.07328318]
[1730538712386,5.9893,166.97,166.93,11.08268318]
[1730538715893,17.07198318,166.97,166.92,11.08268318]
[1730538716208,17.07198318,166.97,166.91,14.9781]
[1730538716209,11.08268318,166.96,166.91,26.06078318]
[1730538716801,11.08268318,166.95,166.91,14.9781]
[1730538717808,17.07228318,166.96,166.91,14.9781]
[1730538718811,17.07228318,166.96,166.91,20.9693]
[1730538719210,17.07228318,166.96,166.91,32.05198318]
[1730538719704,17.07228318,166.96,166.91,20.9693]
[1730538725419,11.08268318,166.94,166.88,11.08268318]
[1730538725708,11.08268318,166.94,166.88,32.05508318]
[1730538726213,11.08268318,166.93,166.88,32.05508318]
[1730538726918,11.08268318,166.92,166.88,20.9724]
[1730538727925,5.9906,166.93,166.88,20.9724]
[1730538727926,17.07328318,166.93,166.88,20.9724]
[1730538728100,5.9906,166.93,166.89,11.08268318]
[1730538738104,17.07328318,166.93,166.87,26.06408318]
[1730538738316,17.07328318,166.93,166.88,11.08268318]
[1730538739425,17.07328318,166.93,166.87,26.06408318]
[1730538741410,11.08268318,166.9,166.85,6.24676898]
[1730538741729,11.08268318,166.87,166.82,11.88058623]
[1730538741899,11.08268318,166.86,166.82,0.79790305]
[1730538749732,17.07558318,166.87,166.82,17.87498623]
[1730538750030,5.9923,166.88,166.84,11.08268318]
[1730538750931,15.7689,166.89,166.85,11.08268318]
[1730538751227,21.7609,166.89,166.84,11.08268318]
[1730538751910,21.7609,166.89,166.84,17.07618318]
[1730538752111,15.7689,166.89,166.84,17.07618318]
[1730538752327,17.07428318,166.9,166.85,11.08268318]
[1730538752829,5.9916,166.9,166.85,11.08268318]
[1730538754608,11.08268318,166.89,166.84,32.06058318]
[1730538754808,11.08268318,166.87,166.83,5.994]
[1730538755813,11.08268318,166.87,166.82,11.88058623]
[1730538755814,11.08268318,166.85,166.82,0.79790305]
[1730538759126,17.07578318,166.86,166.82,0.79790305]